bitfinex-derivatives/quotes_SOLF0:USTF0_20241206
["timestamp","ask_amount","ask_price","bid_price","bid_amount"]
[1733507178342,2.0815,239.93,239.88,6.07]
[1733507178546,26.03067103,239.93,239.88,6.07]
[1733507178750,26.03067103,239.93,239.88,3.80787285]
[1733507179051,2.0818,239.9,239.88,3.80787285]
[1733507179441,26.03067103,239.89,239.88,3.80787285]
[1733507180650,26.03067103,239.89,239.88,2.40235593]
[1733507181047,2.0825,239.81,239.8,2.91]
[1733507181256,2.0825,239.81,239.76,4.18]
[1733507181257,4.32,239.84,239.76,4.18]
[1733507181455,26.03067103,239.81,239.76,4.18]
[1733507181749,2.0828,239.78,239.76,4.18]
[1733507181955,26.03067103,239.77,239.76,4.18]
[1733507182652,26.03067103,239.77,239.76,2.64542185]
[1733507182852,52.06134206,239.77,239.74,0.6231]
[1733507183059,52.06134206,239.77,239.42,3.9152]
[1733507183258,26.03067103,239.62,239.44,2.0857]
[1733507183463,26.03067103,239.66,239.44,2.0857]
[1733507183758,2.0845,239.59,239.46,2.0855]
[1733507183947,26.03067103,239.62,239.46,4.54]
[1733507184148,4.54,239.81,239.51,26.03067103]
[1733507184452,26.03067103,239.7,239.51,5.39]
[1733507184654,26.03067103,239.74,239.51,34.76067103]
[1733507184860,26.03067103,239.74,239.51,40.27067103]
[1733507185060,2.0837,239.68,239.52,6.645]
[1733507185252,26.03067103,239.74,239.52,4.56]
[1733507185552,2.0828,239.78,239.59,26.03067103]
[1733507185757,26.03067103,239.88,239.63,26.03067103]
[1733507185964,26.03067103,239.88,239.64,4.78]
[1733507186355,26.03067103,239.88,239.67,26.03067103]
[1733507186555,26.03067103,239.88,239.63,26.03067103]
[1733507186758,26.03067103,239.66,239.51,14.24]
[1733507186957,30.81067103,239.65,239.51,14.24]
[1733507187150,2.0842,239.62,239.51,14.24]
[1733507187651,26.03067103,239.56,239.51,14.24]
[1733507187855,26.03067103,239.6,239.51,14.24]
[1733507188260,2.0846,239.58,239.51,14.24]
[1733507188661,26.03067103,239.56,239.51,14.24]
[1733507189155,4.78,239.65,239.51,14.24]
[1733507189355,26.03067103,239.59,239.51,14.24]
[1733507189957,26.03067103,239.55,239.51,14.24]
[1733507190354,30.81067103,239.55,239.51,14.24]
[1733507190562,26.03067103,239.52,239.51,9.03900984]
[1733507190956,26.03067103,239.52,239.42,1.45]
[1733507191157,26.03067103,239.48,239.42,1.45]
[1733507191661,26.03067103,239.48,239.36,1.3785]
[1733507192361,26.03067103,239.48,239.38,1.45]
[1733507192660,26.03067103,239.48,239.45,14.64]
[1733507196265,2.0855,239.47,239.45,14.64]
[1733507196467,4.78,239.46,239.45,14.64]
[1733507198368,2.0857,239.45,239.43,3.34]
[1733507198569,26.03067103,239.44,239.43,3.34]
[1733507199667,2.0863,239.38,239.34,6.45]
[1733507199868,26.03067103,239.37,239.34,5.0]
[1733507200165,26.03067103,239.37,239.34,18.34]
[1733507201471,26.03067103,239.37,239.34,21.68]
[1733507201870,2.0862,239.39,239.34,21.68]
[1733507202366,26.03067103,239.45,239.34,21.68]
[1733507202571,26.03067103,239.45,239.35,1.2579]
[1733507202772,2.0859,239.43,239.35,1.2579]
[1733507203372,28.11637103,239.45,239.35,3.3444]
[1733507204270,28.11637103,239.45,239.35,1.2579]
[1733507205374,26.03067103,239.45,239.35,1.2579]
[1733507207578,28.11637103,239.45,239.36,2.0864]
[1733507207778,26.03067103,239.45,239.35,1.2579]
[1733507208179,26.03067103,239.41,239.35,1.2579]
[1733507208673,26.03067103,239.41,239.34,21.68]
[1733507208881,2.0862,239.39,239.34,21.68]
[1733507209179,26.03067103,239.41,239.34,21.68]
[1733507209373,4.78,239.4,239.34,21.68]
[1733507210080,26.03067103,239.41,239.34,21.68]
[1733507210783,26.03067103,239.41,239.34,23.7665]
[1733507211080,4.78,239.44,239.34,21.68]
[1733507211380,2.0858,239.44,239.35,2.0865]
[1733507211771,2.0858,239.44,239.36,1.3861]
[1733507212173,4.78,239.46,239.36,1.3861]
[1733507212174,26.03067103,239.41,239.36,1.3861]
[1733507212377,26.03067103,239.41,239.37,1.45]
[1733507212776,26.03067103,239.41,239.36,1.3861]
[1733507213476,26.03067103,239.45,239.36,1.3861]
[1733507213676,26.03067103,239.45,239.37,1.3863]
[1733507213878,26.03067103,239.41,239.37,1.3863]
[1733507214477,16.08555335,239.42,239.37,1.3863]
[1733507215079,4.78,239.46,239.34,23.13]
[1733507215080,16.08555335,239.38,239.34,23.13]
[1733507215283,2.0865,239.35,239.34,23.13]
[1733507215484,2.0865,239.35,239.34,21.68]
[1733507216082,2.0865,239.36,239.34,21.68]
[1733507216586,4.56,239.37,239.34,21.68]
[1733507217091,4.56,239.37,239.34,17.43]
[1733507217286,20.64555335,239.37,239.34,17.43]
[1733507217682,2.0865,239.36,239.34,17.43]
[1733507218081,16.08555335,239.37,239.34,17.43]
[1733507218685,16.08555335,239.37,239.35,4.4]
[1733507219491,13.98875335,239.37,239.35,4.4]
[1733507220685,16.07515335,239.37,239.35,4.4]
[1733507222490,11.89155335,239.37,239.35,4.4]
[1733507222695,4.56,239.44,239.35,5.6642]
[1733507222988,1.3173,239.51,239.35,5.6642]
[1733507222989,16.08555335,239.46,239.35,5.6642]
[1733507223191,16.08555335,239.46,239.4,2.086]
[1733507223798,16.08555335,239.5,239.35,5.6642]
[1733507224602,16.08555335,239.5,239.36,1.3113]
[1733507224796,16.08555335,239.54,239.36,1.3113]
[1733507225399,2.0851,239.52,239.43,2.0858]
[1733507225599,16.08555335,239.54,239.36,1.3113]
[1733507226399,2.0852,239.51,239.44,2.0857]
[1733507226801,4.1682,239.64,239.44,2.0857]
[1733507226997,16.08555335,239.67,239.47,16.08555335]
[1733507227203,16.08555335,239.67,239.48,1.3113]
[1733507227399,16.08555335,239.63,239.48,1.3113]
[1733507227806,16.08555335,239.63,239.48,4.6513]
[1733507228002,16.08555335,239.63,239.48,6.1013]
[1733507228606,2.0846,239.58,239.51,2.0851]
[1733507229109,2.0846,239.58,239.51,5.4251]
[1733507229801,2.0846,239.58,239.51,10.5151]
[1733507230007,16.08555335,239.63,239.51,8.43]
[1733507230211,2.0844,239.6,239.52,2.085]
[1733507230607,2.0844,239.6,239.51,8.43]
[1733507231110,16.08555335,239.67,239.51,8.43]
[1733507231307,16.08555335,239.63,239.51,8.43]
[1733507231507,2.084,239.65,239.55,2.0847]
[1733507231703,16.08555335,239.69,239.51,8.43]
[1733507232214,16.08555335,239.69,239.52,1.3684]
[1733507232408,3.9875,239.72,239.52,1.3684]
[1733507232614,3.9875,239.72,239.56,2.0847]
[1733507232810,3.9875,239.72,239.53,16.08555335]
[1733507233011,16.08555335,239.7,239.52,1.3684]
[1733507233906,2.0834,239.72,239.54,2.0849]
[1733507234107,16.08555335,239.6,239.51,8.43]
[1733507234313,16.08555335,239.56,239.48,4.79]
[1733507234510,16.08555335,239.52,239.36,1.3721]
[1733507235104,16.08555335,239.56,239.36,1.3721]
[1733507235305,16.08555335,239.56,239.38,16.08555335]
[1733507235603,16.08555335,239.56,239.36,1.3721]
[1733507236002,16.08555335,239.56,239.37,8.86]
[1733507236314,16.08555335,239.56,239.37,12.2]
[1733507236515,26.11736509,239.56,239.37,12.2]
[1733507236812,2.0855,239.47,239.37,12.2]
[1733507237014,4.34,239.5,239.37,12.2]
[1733507237203,26.11736509,239.48,239.37,12.2]
[1733507237404,7.3241799,239.47,239.37,12.2]
[1733507238112,2.0857,239.45,239.37,12.2]
[1733507238416,7.3241799,239.44,239.37,12.2]
[1733507238612,4.34,239.5,239.37,12.2]
[1733507238613,7.3241799,239.43,239.37,12.2]
[1733507238916,4.34,239.5,239.37,12.2]
[1733507239114,7.32643048,239.49,239.37,12.2]
[1733507239316,7.32643048,239.48,239.37,12.2]
[1733507239609,7.32643048,239.47,239.38,6.8263]
[1733507239816,6.4253,239.5,239.38,4.74]
[1733507239817,7.32643048,239.46,239.38,4.74]
[1733507240113,4.34,239.52,239.38,4.74]
[1733507240309,7.3252056,239.51,239.38,4.74]
[1733507240510,7.3252056,239.5,239.38,4.74]
[1733507240714,4.34,239.54,239.42,2.0859]
[1733507240914,7.32347033,239.53,239.38,4.74]
[1733507241112,7.32347033,239.52,239.38,4.74]
[1733507241418,4.34,239.63,239.43,26.11736509]
[1733507241610,7.32204357,239.62,239.44,4.0457]
[1733507241916,7.32204357,239.61,239.44,4.0457]
[1733507242211,4.34,239.63,239.47,26.11736509]
[1733507242413,7.31791294,239.62,239.47,26.11736509]
[1733507242712,4.34,239.63,239.51,26.11736509]
[1733507242713,7.31791294,239.61,239.51,26.11736509]
[1733507242911,1.3171,239.66,239.51,26.11736509]
[1733507243112,7.31761013,239.65,239.51,26.11736509]
[1733507243313,43.42,239.81,239.51,26.11736509]
[1733507243314,7.31761013,239.64,239.51,26.11736509]
[1733507243515,4.34,239.74,239.55,26.11736509]
[1733507243707,7.31472749,239.73,239.56,2.0846]
[1733507243907,2.0835,239.7,239.55,26.11736509]
[1733507244110,7.31472749,239.69,239.55,26.11736509]
[1733507244313,7.31472749,239.68,239.59,2.0844]
[1733507244513,7.31472749,239.67,239.59,2.0844]
[1733507244719,68.79272678,239.75,239.56,1.3153]
[1733507244914,4.34,239.72,239.56,1.3153]
[1733507245217,7.31044989,239.71,239.56,1.3153]
[1733507245511,33.42781498,239.71,239.56,1.3153]
[1733507245815,26.11736509,239.71,239.56,1.3153]
[1733507247315,26.11736509,239.67,239.46,26.11736509]
[1733507247617,4.34,239.72,239.45,1.3963]
[1733507247618,26.11736509,239.63,239.45,1.3963]
[1733507247821,30.45736509,239.63,239.45,1.3963]
[1733507248116,4.34,239.63,239.45,1.3963]
[1733507248312,30.45736509,239.63,239.45,1.3963]
[1733507248816,26.11736509,239.59,239.45,8.0563]
[1733507249118,2.0848,239.56,239.46,2.0855]
[1733507249416,26.11736509,239.59,239.45,8.0563]
[1733507250017,2.0848,239.55,239.45,10.1419]
[1733507250328,7.31218817,239.54,239.45,6.66]
[1733507250620,7.31218817,239.53,239.45,6.66]
[1733507250820,26.11736509,239.59,239.45,6.66]
[1733507250821,2.0847,239.56,239.45,6.66]
[1733507251017,7.31218817,239.55,239.45,6.66]
[1733507251317,7.31218817,239.55,239.45,8.7456]
[1733507251522,7.31218817,239.55,239.45,6.66]
[1733507251723,7.31218817,239.54,239.45,6.66]
[1733507251913,7.31218817,239.53,239.45,6.66]
[1733507252114,7.31218817,239.52,239.45,6.66]
[1733507252421,7.31218817,239.52,239.45,4.28316546]
[1733507252613,4.34,239.53,239.45,4.28316546]
[1733507253625,26.11736509,239.51,239.45,4.28316546]
[1733507254215,26.11736509,239.47,239.45,1.87246546]
[1733507254423,26.11736509,239.47,239.38,4.74]
[1733507254620,7.31238552,239.46,239.38,4.74]
[1733507254822,26.11736509,239.42,239.38,4.74]
[1733507255022,11.47238552,239.41,239.38,4.74]
[1733507255221,7.31238552,239.4,239.38,4.74]
[1733507255614,7.31238552,239.4,239.38,1.90890185]
[1733507255826,2.0863,239.39,239.37,3.34]
[1733507256026,7.31238552,239.38,239.37,3.34]
[1733507256422,2.0864,239.37,239.36,4.21738317]
[1733507256616,9.39878552,239.37,239.36,2.79278558]
[1733507257114,2.0864,239.37,239.36,2.79278558]
[1733507257516,2.0864,239.37,239.36,1.85585075]
[1733507258529,2.0864,239.37,239.35,0.65479235]
[1733507259222,4.16,239.36,239.35,0.65479235]
[1733507259616,4.16,239.36,239.35,0.97587235]
[1733507260321,4.16,239.4,239.35,0.97587235]
[1733507260824,4.16,239.42,239.35,0.97587235]
[1733507261330,4.16,239.44,239.35,0.97587235]
[1733507261526,4.16,239.46,239.35,0.97587235]
[1733507261726,7.30936135,239.45,239.35,0.97587235]
[1733507261928,4.16,239.46,239.35,0.97587235]
[1733507262627,4.16,239.49,239.35,0.97587235]
[1733507262827,4.16,239.49,239.4,2.0861]
[1733507263221,6.2454,239.49,239.38,2.0862]
[1733507263426,4.16,239.49,239.38,2.0862]
[1733507264627,2.0854,239.48,239.38,2.0862]
[1733507264830,4.16,239.49,239.4,2.0861]
[1733507265733,16.08998875,239.56,239.43,2.0858]
[1733507265931,11.47267189,239.53,239.35,0.97587235]
[1733507266129,4.16,239.53,239.35,0.97587235]
[1733507267331,16.08998875,239.6,239.37,16.08998875]
[1733507267632,11.47577413,239.59,239.37,16.08998875]
[1733507267825,7.31577413,239.58,239.37,16.08998875]
[1733507268023,2.0847,239.56,239.46,2.0855]
[1733507268629,2.0847,239.56,239.47,2.0855]
[1733507269325,16.08998875,239.56,239.37,16.08998875]
[1733507269934,2.0849,239.54,239.44,2.0857]
[1733507270328,2.0849,239.54,239.37,16.08998875]
[1733507271035,2.085,239.53,239.44,2.0857]
[1733507271238,2.085,239.53,239.37,16.08998875]
[1733507271938,2.085,239.53,239.45,2.0856]
[1733507272246,16.08998875,239.64,239.41,16.08998875]
[1733507272536,11.47492953,239.63,239.42,1.3165]
[1733507272731,7.31492953,239.62,239.42,1.3165]
[1733507273031,2.0845,239.59,239.43,1.3957]
[1733507273237,7.31492953,239.58,239.45,16.08998875]
[1733507273536,7.31492953,239.58,239.43,1.3957]
[1733507273537,7.31426785,239.57,239.44,1.2932]
[1733507273731,7.31426785,239.56,239.44,1.2932]
[1733507273929,16.08998875,239.6,239.44,1.2932]
[1733507274129,7.3143919,239.59,239.44,1.2932]
[1733507274334,16.08998875,239.6,239.48,2.0854]
[1733507274335,9.3989919,239.58,239.48,2.0854]
[1733507274537,7.3143919,239.57,239.44,1.2932]
[1733507274733,2.0846,239.58,239.44,1.2932]
[1733507274929,7.31472802,239.57,239.44,1.2932]
[1733507275231,2.0846,239.58,239.44,1.2932]
[1733507275438,7.31543889,239.57,239.49,2.0853]
[1733507275638,2.0846,239.58,239.44,1.2932]
[1733507275935,7.31543028,239.57,239.44,1.2932]
[1733507276134,4.16,239.61,239.44,1.2932]
[1733507276336,7.31631173,239.6,239.45,16.08998875]
[1733507276537,7.31631173,239.59,239.45,16.08998875]
[1733507276736,7.31631173,239.58,239.45,16.08998875]
[1733507277036,4.16,239.61,239.45,16.08998875]
[1733507277333,2.0845,239.59,239.45,19.42998875]
[1733507277641,7.31611688,239.58,239.45,19.42998875]
[1733507278038,7.31611688,239.58,239.5,2.0852]
[1733507278341,7.31611688,239.58,239.45,3.34]
[1733507278531,7.31611688,239.57,239.46,2.0856]
[1733507278730,7.31611688,239.56,239.46,2.0856]
[1733507278931,7.31611688,239.55,239.46,2.0856]
[1733507279238,2.0851,239.52,239.45,3.34]
[1733507279433,7.32181594,239.51,239.45,3.34]
[1733507279639,7.32181594,239.5,239.45,3.34]
[1733507280340,7.32181594,239.49,239.45,3.34]
[1733507280541,3.96,239.54,239.45,3.34]
[1733507280941,7.321075,239.53,239.45,3.34]
[1733507281240,7.321075,239.52,239.45,3.34]
[1733507281442,7.321075,239.51,239.45,3.34]
[1733507281641,7.321075,239.5,239.45,3.34]
[1733507281839,7.321075,239.49,239.45,3.34]
[1733507282041,3.96,239.54,239.45,3.34]
[1733507282342,7.32184144,239.53,239.45,3.34]
[1733507282541,7.32184144,239.52,239.45,8.78]
[1733507282840,7.32184144,239.51,239.45,8.78]
[1733507283042,7.32184144,239.5,239.45,8.78]
[1733507283246,7.32184144,239.49,239.45,8.78]
[1733507283542,2.085,239.53,239.45,8.78]
[1733507283743,7.32196616,239.52,239.45,8.78]
[1733507283942,3.96,239.54,239.47,2.0855]
[1733507284143,7.32131318,239.53,239.47,2.0855]
[1733507284438,3.96,239.54,239.47,2.0855]
[1733507284439,7.32131318,239.52,239.47,2.0855]
[1733507284637,2.0848,239.55,239.47,2.0855]
[1733507284838,7.32137567,239.54,239.49,2.0852]
[1733507285037,2.0846,239.58,239.46,1.39]
[1733507285237,3.96,239.59,239.46,17.47998875]
[1733507285238,7.32047837,239.57,239.46,17.47998875]
[1733507285531,7.32047837,239.56,239.51,2.0851]
[1733507285740,43.44,239.65,239.47,1.2656]
[1733507285938,7.31863926,239.64,239.5,16.08998875]
[1733507286141,7.31863926,239.63,239.5,16.08998875]
[1733507286343,7.31863926,239.62,239.5,16.08998875]
[1733507286640,7.31863926,239.62,239.47,5.2256]
[1733507286641,3.96,239.7,239.54,16.08998875]
[1733507286840,2.0837,239.68,239.55,1.3987]
[1733507287038,7.3157443,239.67,239.56,1.39]
[1733507287233,7.3157443,239.66,239.56,1.39]
[1733507287443,2.0835,239.71,239.61,2.0842]
[1733507287638,7.31266754,239.7,239.62,1.2656]
[1733507287843,3.96,239.73,239.62,1.2656]
[1733507287844,7.31266754,239.69,239.62,1.2656]
[1733507288045,7.31266754,239.68,239.63,6.29]
[1733507288244,3.96,239.73,239.63,6.29]
[1733507288544,7.30964674,239.72,239.63,6.29]
[1733507288839,7.30964674,239.71,239.63,6.29]
[1733507289040,3.96,239.77,239.63,6.29]
[1733507289254,7.30557554,239.76,239.66,16.08998875]
[1733507289545,3.96,239.83,239.67,2.661]
[1733507289843,2.0826,239.81,239.7,2.0835]
[1733507290046,7.30534564,239.8,239.7,2.0835]
[1733507290237,2.0826,239.81,239.7,2.0835]
[1733507290443,2.0826,239.81,239.71,2.0834]
[1733507290643,16.08998875,239.92,239.7,16.08998875]
[1733507290842,43.42,239.93,239.67,2.661]
[1733507290843,3.96,239.87,239.67,2.661]
[1733507291039,16.08998875,239.84,239.67,2.661]
[1733507291345,3.96,239.87,239.67,2.661]
[1733507291642,2.0823,239.85,239.73,2.0832]
[1733507291943,11.24840382,239.86,239.67,5.991]
[1733507292143,3.96,239.86,239.67,5.991]
[1733507292346,2.0823,239.84,239.74,2.0831]
[1733507293145,2.0823,239.84,239.75,2.083]
[1733507294041,2.0823,239.84,239.76,3.33]
[1733507295761,2.0822,239.85,239.76,3.33]
[1733507296149,3.96,239.86,239.76,3.33]
[1733507296356,2.0825,239.82,239.76,3.33]
[1733507296857,3.96,239.86,239.76,3.33]
[1733507296858,2.0828,239.78,239.76,3.33]
[1733507297359,3.96,239.86,239.76,3.33]
[1733507297360,2.0828,239.79,239.76,3.33]
[1733507297658,16.08998875,239.84,239.76,3.33]
[1733507298358,3.96,239.83,239.76,3.33]
[1733507298657,2.0828,239.78,239.76,3.33]
[1733507300358,2.0827,239.8,239.76,3.33]
[1733507303054,3.96,239.83,239.76,3.33]
[1733507303261,7.25432051,239.82,239.76,2.24640446]
[1733507303450,7.25432051,239.81,239.76,2.24640446]
[1733507303756,3.96,239.83,239.76,2.24640446]
[1733507304062,2.0826,239.81,239.76,2.24640446]
[1733507304358,3.94,239.86,239.76,4.32940446]
[1733507304557,7.26014879,239.85,239.76,2.24640446]
[1733507304862,3.94,239.9,239.77,1.2971]
[1733507305056,9.34132135,239.89,239.78,2.0828]
[1733507305256,2.0819,239.89,239.77,1.2971]
[1733507305459,2.0819,239.89,239.78,1.388]
[1733507306264,3.94,239.9,239.78,1.388]
[1733507307263,2.0819,239.88,239.78,1.388]
[1733507307659,3.94,239.9,239.78,1.388]
[1733507307860,7.25944105,239.89,239.78,1.388]
[1733507308055,3.94,239.9,239.78,1.388]
[1733507308459,3.94,239.9,239.81,2.0825]
[1733507308762,3.94,239.9,239.78,2.7543]
[1733507308971,43.42,239.93,239.78,18.84428875]
[1733507309165,5.8816,239.92,239.83,2.0823]
[1733507309364,16.08998875,240.02,239.78,18.84428875]
[1733507309567,16.08998875,240.24,239.78,18.84428875]
[1733507309568,2.0796,240.16,240.04,2.0805]
[1733507309758,3.8,240.25,240.11,16.08998875]
[1733507309958,3.8,240.23,240.11,16.08998875]
[1733507310358,3.8,240.23,240.07,16.08998875]
[1733507310567,3.8,240.23,240.1,9.98533722]
[1733507311065,3.8,240.22,240.1,9.98533722]
[1733507311264,4.1542,240.45,240.0,9.98533722]
[1733507311265,4.1542,240.45,240.14,9.98533722]
[1733507311459,9.98533722,240.33,240.14,9.98533722]
[1733507311662,3.8,240.32,240.14,9.98533722]
[1733507312662,3.8,240.32,240.14,15.96883893]
[1733507313474,2.0788,240.27,240.14,15.96883893]
[1733507313669,19.76883893,240.31,240.14,6.8]
[1733507313965,2.0793,240.21,240.14,6.8]
[1733507314167,3.8,240.2,240.14,6.8]
[1733507314395,15.96883893,240.19,240.14,14.4]
[1733507314566,2.0797,240.16,240.14,7.6]
[1733507314768,3.8,240.15,240.14,7.6]
[1733507315268,47.14,240.25,240.14,7.6]
[1733507315667,63.10883893,240.25,240.14,7.6]
[1733507315971,47.14,240.25,240.14,7.6]
[1733507316164,47.14,240.25,240.14,9.96]
[1733507316362,47.14,240.25,240.14,13.29]
[1733507316575,12.5,240.44,240.2,15.96883893]
[1733507316576,15.96883893,240.44,240.2,15.96883893]
[1733507316870,15.96883893,240.44,240.21,1.3136]
[1733507317068,15.96883893,240.44,240.22,3.8]
[1733507317367,15.96883893,240.62,240.4,15.96883893]
[1733507317771,2.076,240.59,240.43,2.0773]
[1733507318367,2.076,240.59,240.44,2.0772]
[1733507318674,3.8,240.61,240.41,3.9706]
[1733507319371,2.0759,240.58,240.41,3.9706]
[1733507319572,3.8,240.61,240.41,3.9706]
[1733507319870,2.0765,240.52,240.41,3.9706]
[1733507320079,3.8,240.53,240.41,2.657]
[1733507320369,15.96883893,240.52,240.31,15.96883893]
[1733507320571,25.92744781,240.45,240.27,1.3913]
[1733507320773,3.8,240.44,240.27,1.3913]
[1733507321173,25.92744781,240.45,240.27,1.3913]
[1733507321374,3.8,240.43,240.27,1.3913]
[1733507321672,25.92744781,240.45,240.27,1.3913]
[1733507321872,3.8,240.44,240.27,1.3913]
[1733507322681,2.0773,240.42,240.27,1.3913]
[1733507323974,3.8,240.44,240.27,1.3913]
[1733507323975,2.0774,240.41,240.27,1.3913]
[1733507324473,2.0774,240.41,240.25,30.67694781]
[1733507324474,25.92744781,240.41,240.25,2.6708]
[1733507324671,25.92744781,240.37,240.25,2.6708]
[1733507324971,3.8,240.36,240.23,3.33]
[1733507326677,2.0781,240.33,240.23,3.33]
[1733507327174,2.0782,240.32,240.23,3.33]
[1733507327773,3.8,240.36,240.23,3.33]
[1733507328180,2.0785,240.28,240.23,3.33]
[1733507328572,3.8,240.36,240.23,3.33]
[1733507328773,2.0786,240.27,240.23,3.33]
[1733507328978,2.0786,240.27,240.23,9.08]
[1733507333074,2.0788,240.25,240.23,9.08]
[1733507333977,2.0788,240.25,240.23,5.75]
[1733507334683,2.0788,240.25,240.23,9.08]
[1733507336485,3.8,240.28,240.23,9.08]
[1733507336680,3.8,240.28,240.23,12.41]
[1733507336885,3.8,240.29,240.23,14.74]
[1733507337883,25.92744781,240.36,240.23,14.74]
[1733507337884,3.66,240.31,240.23,14.74]
[1733507338380,3.66,240.32,240.23,14.74]
[1733507339085,3.66,240.37,240.24,25.92744781]
[1733507339282,3.66,240.37,240.24,27.27864781]
[1733507339487,2.0776,240.38,240.24,27.27864781]
[1733507339979,2.0775,240.39,240.28,2.0785]
[1733507340283,2.0775,240.39,240.24,27.27864781]
[1733507340284,3.66,240.42,240.24,27.27864781]
[1733507341189,2.0775,240.4,240.28,25.92744781]
[1733507341381,3.66,240.42,240.28,25.92744781]
[1733507341574,25.92744781,240.5,240.28,25.92744781]
[1733507341783,3.66,240.49,240.28,25.92744781]
[1733507342086,3.66,240.49,240.33,25.92744781]
[1733507342387,3.66,240.49,240.34,1.3668]
[1733507342581,3.66,240.49,240.34,2.6815]
[1733507342786,3.66,240.49,240.35,2.0779]
[1733507342984,3.66,240.49,240.34,2.6815]
[1733507344791,2.0771,240.44,240.34,2.6815]
[1733507344988,15.94444661,240.45,240.34,2.6815]
[1733507345191,2.0776,240.39,240.34,2.6815]
[1733507345388,15.94444661,240.45,240.34,2.6815]
[1733507346788,2.0771,240.44,240.34,2.6815]
[1733507347490,19.60444661,240.49,240.34,2.6815]
[1733507347491,2.0771,240.45,240.34,2.6815]
[1733507347697,19.60444661,240.49,240.34,2.6815]
[1733507348099,2.0771,240.45,240.34,2.6815]
[1733507348398,19.60444661,240.49,240.34,2.6815]
[1733507348792,15.94444661,240.45,240.34,2.6815]
[1733507349700,2.0776,240.39,240.35,2.31]
[1733507349989,19.60444661,240.49,240.35,2.31]
[1733507350203,3.66,240.49,240.35,2.31]
[1733507350493,2.077,240.45,240.35,2.31]
[1733507350688,3.66,240.49,240.35,2.31]
[1733507351294,2.0773,240.42,240.35,2.31]
[1733507352393,2.0772,240.44,240.35,2.31]
[1733507352594,15.94444661,240.48,240.35,2.31]
[1733507353298,3.66,240.49,240.35,5.63]
[1733507353299,15.94444661,240.44,240.35,5.63]
[1733507354096,3.66,240.49,240.35,5.63]
[1733507354097,15.94444661,240.48,240.35,5.63]
[1733507354998,3.66,240.47,240.35,5.63]
[1733507355401,3.66,240.46,240.35,8.95]
[1733507355602,2.0773,240.42,240.35,15.62]
[1733507355795,3.66,240.46,240.35,15.62]
[1733507356002,2.0775,240.39,240.35,15.62]
[1733507357202,2.0775,240.4,240.35,15.62]
[1733507357997,15.94444661,240.48,240.35,15.62]
[1733507357998,345.42440039,240.71,240.37,15.94444661]
[1733507358197,4.1488,240.76,240.36,15.94444661]
[1733507358198,15.94444661,240.6,240.36,15.94444661]
[1733507358393,3.66,240.59,240.36,15.94444661]
[1733507358995,1.2954,240.58,240.36,15.94444661]
[1733507359195,2.0764,240.52,240.36,15.94444661]
[1733507359397,3.66,240.51,240.36,15.94444661]
[1733507360103,3.66,240.5,240.36,15.94444661]
[1733507360503,1.2954,240.58,240.4,15.94444661]
[1733507360799,3.66,240.57,240.36,15.94444661]
[1733507361103,2.0768,240.48,240.36,15.94444661]
[1733507361306,3.66,240.47,240.36,15.94444661]
[1733507361806,3.66,240.47,240.35,13.31]
[1733507362100,17.29134661,240.56,240.35,13.31]
[1733507362304,3.66,240.55,240.35,15.6]
[1733507362801,2.077,240.46,240.35,15.6]
[1733507362996,17.29134661,240.56,240.35,15.6]
[1733507363703,2.077,240.45,240.35,15.6]
[1733507363904,3.66,240.44,240.35,15.6]